fUSD/lending_fUSD_20260205
["ID","MTS","AMOUNT","RATE_DAILY","PERIOD"]
[404610961,1770326747192,-1122993.0,0.00044069,30]
[404610962,1770326747219,-556.59586375,0.00044069,30]
[404610963,1770326747384,-108632.38861808,0.00044069,120]
[404610964,1770326747413,-635508.82339744,0.00044069,30]
[404610965,1770326747439,-29958.85184252,0.00044069,30]
[404610966,1770326747465,-20481.42823552,0.00044069,30]
[404610967,1770326747495,-206964.26131475,0.00044069,30]
[404610968,1770326747520,-29957.1393643,0.00044069,30]
[404610969,1770326747547,-3152243.1078342,0.00044069,30]
[404610970,1770326747574,-9999.99999901,0.00044069,30]
[404610971,1770326747599,-5802.41283197,0.00044069,30]
[404610972,1770326747623,-83441.50433703,0.00044069,30]
[404610973,1770326747648,-100000.0,0.00044069,30]
[404610974,1770326747678,-1704.0,0.00044069,30]
[404610975,1770326747703,-259.44613041,0.00044069,120]
[404610976,1770326747728,-266.13870632,0.00044069,30]
[404610977,1770326747754,-681.78111952,0.00044069,30]
[404610978,1770326747780,-338.0,0.00044069,30]
[404610979,1770326747805,-338.0,0.00044069,120]
[404610980,1770326747830,-12172.9842356,0.00044069,91]
[404610981,1770326747855,-99909.0,0.00044069,30]
[404610982,1770326747878,-43046.09048099,0.00044069,60]
[404610983,1770326747904,-15000.0,0.00044069,120]
[404610984,1770326747929,-21142.33991889,0.00044069,30]
[404610985,1770326747954,-5000.0,0.00044069,120]
[404610986,1770326747984,-5000.0,0.00044069,120]
[404610987,1770326748010,-5000.0,0.00044069,120]
[404610988,1770326748035,-5000.0,0.00044069,120]
[404610989,1770326748060,-5000.0,0.00044069,120]
[404610990,1770326748084,-5682.67,0.00044069,120]
[404610991,1770326748110,-3637.69854093,0.00044069,120]
[404610992,1770326748135,-458.72889247,0.00044069,120]
[404610993,1770326748161,-42644.15,0.00044069,120]
[404610994,1770326748187,-19671.86835079,0.00044069,120]
[404610995,1770326757160,-17977.19490792,0.00044069,120]
[404610996,1770326757186,-10358.0,0.00044069,120]
[404610997,1770326757212,-400.0,0.00044069,30]
[404610998,1770326757237,-400.0,0.00044069,30]
[404610999,1770326757263,-400.0,0.00044069,30]
[404611000,1770326757287,-400.0,0.00044069,30]
[404611001,1770326757318,-400.0,0.00044069,30]
[404611002,1770326757345,-400.0,0.00044069,30]
[404611003,1770326757374,-400.0,0.00044069,30]
[404611004,1770326757405,-400.0,0.00044069,30]
[404611005,1770326757431,-400.0,0.00044069,30]
[404611006,1770326757455,-400.0,0.00044069,30]
[404611007,1770326757482,-400.0,0.00044069,30]
[404611008,1770326757507,-400.0,0.00044069,30]
[404611009,1770326757533,-400.0,0.00044069,30]
[404611010,1770326757557,-400.0,0.00044069,30]
[404611011,1770326757585,-400.0,0.00044069,30]
[404611012,1770326757611,-400.0,0.00044069,30]
[404611013,1770326757637,-434.14520856,0.00044069,30]
[404611014,1770326757662,-753.53632243,0.00044069,60]
[404611015,1770326757688,-4066.0,0.00044069,30]
[404611016,1770326757715,-227.59743472,0.00044069,120]
[404611017,1770326757747,-227.59743472,0.00044069,120]
[404611018,1770326757773,-227.59743472,0.00044069,120]
[404611019,1770326757799,-9374.69642452,0.00044069,120]
[404611020,1770326757825,-8076.16439602,0.00044069,120]
[404611021,1770326757850,-7504.60965509,0.00044069,120]
[404611022,1770326757878,-7569.56523445,0.00044069,120]
[404611023,1770326757903,-91235.96817622,0.00044069,120]
[404611024,1770326757930,-3265.0,0.00044069,120]
[404611025,1770326757956,-10649.88385992,0.00044069,120]
[404611026,1770326757984,-4723963.85282109,0.00044069,30]
[404611027,1770326758009,-506576.71109068,0.00044069,120]
[404611028,1770326758035,-4360.35982521,0.00044069,120]
[404611029,1770326758276,-19530.30895969,0.00044069,120]
[404611030,1770326758303,-198004.55320354,0.00044069,30]
[404611031,1770326758331,-41094.24734421,0.00044069,120]
[404611032,1770326758359,-9999.999999,0.00044069,60]
[404611033,1770326758385,-325582.999999,0.00044069,120]
[404611034,1770326758412,-82746.0,0.00044069,30]
[404611035,1770326758441,-331.80827932,0.00044069,120]
[404611036,1770326758471,-331.80827932,0.00044069,120]
[404611037,1770326758503,-331.80827932,0.00044069,120]
[404611038,1770326758529,-276556.45410645,0.00044069,120]
[404611039,1770326758555,-9057.02982409,0.00044069,120]
[404611040,1770326758581,-25571.85772696,0.00044069,120]
[404611041,1770326758606,-25204.17628198,0.00044069,120]
[404611042,1770326758632,-351239.40104443,0.00044069,120]
[404611043,1770326758657,-12220.47270122,0.00044069,120]
[404611044,1770326758683,-13609.44016757,0.00044069,120]
[404611045,1770326758712,-3701.0670534,0.00044069,120]
[404611046,1770326758739,-8567.92295583,0.00044069,120]
[404611047,1770326758766,-6225.93405962,0.00044069,120]
[404611048,1770326758792,-3228.6214357,0.00044069,30]
[404611049,1770326758819,-3498.334,0.00044069,30]
[404611050,1770326758847,-2001.02961648,0.00044069,120]
[404611051,1770326758872,-16232.46451287,0.00044069,30]
[404611052,1770326758898,-2975.38440174,0.00044069,30]
[404611053,1770326758926,-5100.0,0.00044069,36]
[404611054,1770326758953,-122263.63038455,0.00044069,120]
[404611055,1770326758982,-3229.23,0.00044069,120]
[404611056,1770326759010,-228.69657264,0.00044069,120]
[404611057,1770326759038,-228.69657264,0.00044069,120]
[404611058,1770326759064,-228.69657264,0.00044069,120]
[404611059,1770326759090,-13291.94620119,0.00044069,30]
[404611060,1770326759117,-1000.0,0.00044069,120]
[404611061,1770326759143,-15933.34,0.00044069,120]
[404611062,1770326759182,-1544.7575368,0.00044069,120]
[404611063,1770326759209,-6144.74344356,0.00044069,120]
[404611064,1770326759237,-1400.899999,0.00044069,120]
[404611065,1770326759264,-324.04495627,0.00044069,120]
[404611066,1770326759291,-834.97500205,0.00044069,120]
[404611067,1770326759317,-356.47,0.00044069,30]
[404611068,1770326759344,-500.0,0.00044069,120]
[404611069,1770326759375,-575.82114273,0.00044069,120]
[404611070,1770326759403,-607.31399205,0.00044069,120]
[404611071,1770326759431,-394.52,0.00044069,120]
[404611072,1770326759457,-199.999999,0.00044069,120]
[404611073,1770326759488,-1393.08,0.00044069,90]
[404611074,1770326759514,-311.65591603,0.00044069,120]
[404611075,1770326759542,-1229.08,0.00044069,30]
[404611076,1770326759572,-407.99,0.00044069,30]
[404611077,1770326759600,-614.43,0.00044069,30]
[404611078,1770326759628,-150.0,0.00044069,30]
[404611079,1770326759655,-150.0,0.00044069,30]
[404611080,1770326759683,-360.64,0.00044069,30]
[404611081,1770326759710,-150.0,0.00044069,30]
[404611082,1770326759738,-360.73,0.00044069,30]
[404611083,1770326759764,-150.0,0.00044069,30]
[404611084,1770326759792,-150.0,0.00044069,30]
[404611085,1770326759819,-1233.94,0.00044069,30]
[404611086,1770326759846,-150.0,0.00044069,30]
[404611087,1770326759872,-180.38,0.00044069,30]
[404611088,1770326759899,-172.62,0.00044069,30]
[404611089,1770326759925,-1229.18,0.00044069,30]
[404611090,1770326759951,-482.51,0.00044069,30]
[404611091,1770326759979,-150.0,0.00044069,30]
[404611092,1770326760005,-560.26,0.00044069,30]
[404611093,1770326760037,-300.0,0.00044069,30]
[404611094,1770326760064,-150.0,0.00044069,30]
[404611095,1770326760091,-180.32,0.00044069,30]
[404611096,1770326760118,-172.6,0.00044069,30]
[404611097,1770326760145,-1142.87,0.00044069,30]
[404611098,1770326760172,-150.0,0.00044069,30]
[404611099,1770326760200,-485.84,0.00044069,30]
[404611100,1770326760231,-379.04,0.00044069,30]
[404611101,1770326760263,-150.0,0.00044069,30]
[404611102,1770326760292,-172.53,0.00044069,30]
[404611103,1770326760320,-150.0,0.00044069,30]
[404611104,1770326760349,-360.7,0.00044069,30]
[404611105,1770326760379,-150.0,0.00044069,30]
[404611106,1770326760407,-150.0,0.00044069,30]
[404611107,1770326760435,-150.0,0.00044069,30]
[404611108,1770326760463,-180.35,0.00044069,30]
[404611109,1770326760495,-172.62,0.00044069,30]
[404611110,1770326760524,-300.0,0.00044069,30]
[404611111,1770326760552,-560.13,0.00044069,30]
[404611112,1770326760580,-485.58,0.00044069,30]
[404611113,1770326760609,-150.0,0.00044069,30]
[404611114,1770326760636,-1038.95,0.00044069,30]
[404611115,1770326760664,-180.38,0.00044069,30]
[404611116,1770326760935,-150.0,0.00044069,30]
[404611117,1770326760957,-300.75,0.00044069,30]
[404611118,1770326760989,-150.0,0.00044069,30]
[404611119,1770326761017,-1228.98,0.00044069,30]
[404611120,1770326761046,-150.0,0.00044069,30]
[404611121,1770326761073,-469.76,0.00044069,30]
[404611122,1770326761101,-1131.54,0.00044069,30]
[404611123,1770326761127,-180.38,0.00044069,30]
[404611124,1770326761153,-239.16,0.00044069,30]
[404611125,1770326761180,-614.64,0.00044069,30]
[404611126,1770326761206,-150.0,0.00044069,30]
[404611127,1770326761236,-469.76,0.00044069,30]
[404611128,1770326761262,-150.0,0.00044069,30]
[404611129,1770326761288,-180.38,0.00044069,30]
[404611130,1770326761315,-485.98,0.00044069,30]
[404611131,1770326761340,-150.0,0.00044069,30]
[404611132,1770326761369,-150.0,0.00044069,30]
[404611133,1770326761396,-560.26,0.00044069,30]
[404611134,1770326761426,-172.6,0.00044069,30]
[404611135,1770326761455,-150.0,0.00044069,30]
[404611136,1770326761490,-1234.44,0.00044069,30]
[404611137,1770326761516,-150.0,0.00044069,30]
[404611138,1770326761541,-476.98,0.00044069,30]
[404611139,1770326761566,-174.82,0.00044069,30]
[404611140,1770326761593,-1234.44,0.00044069,30]
[404611141,1770326761619,-457.8,0.00044069,30]
[404611142,1770326761648,-150.0,0.00044069,30]
[404611143,1770326761674,-300.0,0.00044069,30]
[404611144,1770326761699,-1237.95,0.00044069,30]
[404611145,1770326761726,-150.0,0.00044069,30]
[404611146,1770326761755,-180.35,0.00044069,30]
[404611147,1770326761782,-150.0,0.00044069,30]
[404611148,1770326761809,-560.13,0.00044069,30]
[404611149,1770326761838,-560.26,0.00044069,30]
[404611150,1770326761867,-300.0,0.00044069,30]
[404611151,1770326761894,-345.13,0.00044069,30]
[404611152,1770326761920,-614.54,0.00044069,30]
[404611153,1770326761946,-180.38,0.00044069,30]
[404611154,1770326761971,-918.29,0.00044069,30]
[404611155,1770326762001,-150.0,0.00044069,30]
[404611156,1770326762028,-300.0,0.00044069,30]
[404611157,1770326762054,-180.38,0.00044069,30]
[404611158,1770326762080,-150.0,0.00044069,30]
[404611159,1770326762121,-1229.08,0.00044069,30]
[404611160,1770326762152,-318.84,0.00044069,30]
[404611161,1770326762179,-150.0,0.00044069,30]
[404611162,1770326762207,-469.76,0.00044069,30]
[404611163,1770326762238,-150.0,0.00044069,30]
[404611164,1770326762265,-560.26,0.00044069,30]
[404611165,1770326762293,-485.84,0.00044069,30]
[404611166,1770326762319,-172.62,0.00044069,30]
[404611167,1770326762346,-150.0,0.00044069,30]
[404611168,1770326762375,-150.0,0.00044069,30]
[404611169,1770326762403,-150.0,0.00044069,30]
[404611170,1770326762431,-345.2,0.00044069,30]
[404611171,1770326762457,-180.38,0.00044069,30]
[404611172,1770326762489,-560.26,0.00044069,30]
[404611173,1770326762519,-150.67,0.00044069,30]
[404611174,1770326762553,-469.76,0.00044069,30]
[404611175,1770326762582,-614.54,0.00044069,30]
[404611176,1770326762613,-485.84,0.00044069,30]
[404611177,1770326762640,-150.0,0.00044069,30]
[404611178,1770326762668,-150.0,0.00044069,30]
[404611179,1770326762697,-180.35,0.00044069,30]
[404611180,1770326762725,-560.13,0.00044069,30]
[404611181,1770326762764,-344.99,0.00044069,30]
[404611182,1770326762797,-150.0,0.00044069,30]
[404611183,1770326762825,-614.54,0.00044069,30]
[404611184,1770326762852,-469.76,0.00044069,30]
[404611185,1770326762880,-150.0,0.00044069,30]
[404611186,1770326762908,-150.0,0.00044069,30]
[404611187,1770326762935,-150.0,0.00044069,30]
[404611188,1770326762963,-172.6,0.00044069,30]
[404611189,1770326762990,-180.35,0.00044069,30]
[404611190,1770326763017,-560.13,0.00044069,30]
[404611191,1770326763044,-939.52,0.00044069,30]
[404611192,1770326763071,-150.0,0.00044069,30]
[404611193,1770326763099,-1234.44,0.00044069,30]
[404611194,1770326763126,-150.0,0.00044069,30]
[404611195,1770326763154,-485.84,0.00044069,30]
[404611196,1770326763182,-614.64,0.00044069,30]
[404611197,1770326763209,-157.82,0.00044069,30]
[404611198,1770326763238,-150.0,0.00044069,30]
[404611199,1770326763264,-150.0,0.00044069,30]
[404611200,1770326763290,-150.0,0.00044069,30]
[404611201,1770326763318,-560.13,0.00044069,30]
[404611202,1770326763345,-180.35,0.00044069,30]
[404611203,1770326763566,-150.0,0.00044069,30]
[404611204,1770326763592,-150.0,0.00044069,30]
[404611205,1770326763617,-345.22,0.00044069,30]
[404611206,1770326763643,-150.0,0.00044069,30]
[404611207,1770326763668,-466.43,0.00044069,30]
[404611208,1770326763695,-1229.08,0.00044069,30]
[404611209,1770326763723,-469.84,0.00044069,30]
[404611210,1770326763754,-180.38,0.00044069,30]
[404611211,1770326763779,-1125.81,0.00044069,30]
[404611212,1770326763806,-150.0,0.00044069,30]
[404611213,1770326763832,-150.0,0.00044069,30]
[404611214,1770326763859,-614.54,0.00044069,30]
[404611215,1770326763885,-167.01,0.00044069,30]
[404611216,1770326763913,-172.6,0.00044069,30]
[404611217,1770326763940,-360.7,0.00044069,30]
[404611218,1770326763969,-150.9,0.00044069,30]
[404611219,1770326764002,-448.33,0.00044069,30]
[404611220,1770326764032,-614.64,0.00044069,30]
[404611221,1770326764059,-150.0,0.00044069,30]
[404611222,1770326764086,-560.26,0.00044069,30]
[404611223,1770326764112,-343.72,0.00044069,30]
[404611224,1770326764139,-931.87,0.00044069,30]
[404611225,1770326764165,-300.0,0.00044069,30]
[404611226,1770326764192,-614.54,0.00044069,30]
[404611227,1770326764218,-150.0,0.00044069,30]
[404611228,1770326764245,-300.0,0.00044069,30]
[404611229,1770326764271,-939.52,0.00044069,30]
[404611230,1770326764298,-345.02,0.00044069,30]
[404611231,1770326764324,-469.84,0.00044069,30]
[404611232,1770326764351,-150.0,0.00044069,30]
[404611233,1770326764381,-614.64,0.00044069,30]
[404611234,1770326764408,-150.0,0.00044069,30]
[404611235,1770326764435,-150.0,0.00044069,30]
[404611236,1770326764462,-362.4,0.00044069,30]
[404611237,1770326764492,-560.26,0.00044069,30]
[404611238,1770326764522,-180.35,0.00044069,30]
[404611239,1770326764551,-469.84,0.00044069,30]
[404611240,1770326764579,-360.37,0.00044069,30]
[404611241,1770326764606,-559.85,0.00044069,30]
[404611242,1770326764633,-614.54,0.00044069,30]
[404611243,1770326764660,-150.0,0.00044069,30]
[404611244,1770326764686,-300.0,0.00044069,30]
[404611245,1770326764713,-345.18,0.00044069,30]
[404611246,1770326764743,-469.67,0.00044069,30]
[404611247,1770326764770,-150.0,0.00044069,30]
[404611248,1770326764798,-150.0,0.00044069,30]
[404611249,1770326764825,-300.0,0.00044069,30]
[404611250,1770326764852,-469.76,0.00044069,30]
[404611251,1770326764884,-485.84,0.00044069,30]
[404611252,1770326764912,-150.0,0.00044069,30]
[404611253,1770326764941,-560.13,0.00044069,30]
[404611254,1770326764967,-2496.0,0.00044069,30]
[404611255,1770326764999,-180.35,0.00044069,30]
[404611256,1770326765027,-172.62,0.00044069,30]
[404611257,1770326765052,-150.0,0.00044069,30]
[404611258,1770326765079,-614.64,0.00044069,30]
[404611259,1770326765105,-150.0,0.00044069,30]
[404611260,1770326765131,-150.67,0.00044069,30]
[404611261,1770326765156,-150.0,0.00044069,30]
[404611262,1770326765183,-1081.38,0.00044069,30]
[404611263,1770326765211,-259.56,0.00044069,30]
[404611264,1770326765242,-559.99,0.00044069,30]
[404611265,1770326765270,-180.38,0.00044069,30]
[404611266,1770326765297,-614.54,0.00044069,30]
[404611267,1770326765328,-344.98,0.00044069,30]
[404611268,1770326765360,-186.23,0.00044069,30]
[404611269,1770326765388,-150.0,0.00044069,30]
[404611270,1770326765416,-469.84,0.00044069,30]
[404611271,1770326765445,-308.35,0.00044069,30]
[404611272,1770326765473,-150.0,0.00044069,30]
[404611273,1770326765504,-358.04,0.00044069,30]
[404611274,1770326765530,-150.0,0.00044069,30]
[404611275,1770326765561,-469.76,0.00044069,30]
[404611276,1770326765588,-885.85,0.00044069,30]
[404611277,1770326765616,-150.0,0.00044069,30]
[404611278,1770326765647,-343.85,0.00044069,30]
[404611279,1770326765674,-469.67,0.00044069,30]
[404611280,1770326765700,-180.38,0.00044069,30]
[404611281,1770326765728,-172.6,0.00044069,30]
[404611282,1770326765761,-360.73,0.00044069,30]
[404611283,1770326765792,-300.0,0.00044069,30]
[404611284,1770326765820,-1234.44,0.00044069,30]
[404611285,1770326765847,-150.0,0.00044069,30]
[404611286,1770326765879,-1229.08,0.00044069,30]
[404611287,1770326765907,-485.84,0.00044069,30]
[404611288,1770326765935,-150.0,0.00044069,30]
[404611289,1770326765961,-559.61,0.00044069,30]
[404611290,1770326766161,-150.75,0.00044069,30]
[404611291,1770326766187,-172.62,0.00044069,30]
[404611292,1770326766214,-469.84,0.00044069,30]
[404611293,1770326766241,-300.0,0.00044069,30]
[404611294,1770326766268,-2467.88,0.00044069,30]
[404611295,1770326766294,-172.6,0.00044069,30]
[404611296,1770326766320,-150.0,0.00044069,30]
[404611297,1770326766347,-469.76,0.00044069,30]
[404611298,1770326766375,-971.68,0.00044069,30]
[404611299,1770326766401,-360.76,0.00044069,30]
[404611300,1770326766428,-614.54,0.00044069,30]
[404611301,1770326766455,-345.2,0.00044069,30]
[404611302,1770326766485,-614.54,0.00044069,30]
[404611303,1770326766511,-345.22,0.00044069,30]
[404611304,1770326766537,-180.38,0.00044069,30]
[404611305,1770326766563,-150.0,0.00044069,30]
[404611306,1770326766590,-485.84,0.00044069,30]
[404611307,1770326766616,-939.52,0.00044069,30]
[404611308,1770326766643,-150.0,0.00044069,30]
[404611309,1770326766669,-180.38,0.00044069,30]
[404611310,1770326766697,-150.0,0.00044069,30]
[404611311,1770326766722,-150.0,0.00044069,30]
[404611312,1770326766753,-1227.67,0.00044069,30]
[404611313,1770326766779,-397.89,0.00044069,30]
[404611314,1770326766805,-180.35,0.00044069,30]
[404611315,1770326766831,-469.76,0.00044069,30]
[404611316,1770326766858,-614.64,0.00044069,30]
[404611317,1770326766885,-345.2,0.00044069,30]
[404611318,1770326766913,-614.54,0.00044069,30]
[404611319,1770326766941,-172.6,0.00044069,30]
[404611320,1770326766969,-469.84,0.00044069,30]
[404611321,1770326767000,-180.38,0.00044069,30]
[404611322,1770326767026,-172.6,0.00044069,30]
[404611323,1770326767052,-614.54,0.00044069,30]
[404611324,1770326767078,-360.55,0.00044069,30]
[404611325,1770326767105,-172.62,0.00044069,30]
[404611326,1770326767131,-1234.44,0.00044069,30]
[404611327,1770326767157,-180.38,0.00044069,30]
[404611328,1770326767183,-614.64,0.00044069,30]
[404611329,1770326767209,-494.24,0.00044069,30]
[404611330,1770326767239,-150.0,0.00044069,30]
[404611331,1770326767265,-150.0,0.00044069,30]
[404611332,1770326767291,-469.76,0.00044069,30]
[404611333,1770326767316,-150.0,0.00044069,30]
[404611334,1770326767342,-485.98,0.00044069,30]
[404611335,1770326767369,-1228.04,0.00044069,30]
[404611336,1770326767394,-939.51,0.00044069,30]
[404611337,1770326767420,-345.18,0.00044069,30]
[404611338,1770326767451,-180.35,0.00044069,30]
[404611339,1770326767476,-180.32,0.00044069,30]
[404611340,1770326767506,-614.54,0.00044069,30]
[404611341,1770326767533,-150.21,0.00044069,30]
[404611342,1770326767559,-300.0,0.00044069,30]
[404611343,1770326767586,-345.22,0.00044069,30]
[404611344,1770326767613,-1234.44,0.00044069,30]
[404611345,1770326767640,-560.13,0.00044069,30]
[404611346,1770326767669,-474.62,0.00044069,30]
[404611347,1770326767695,-939.6,0.00044069,30]
[404611348,1770326767724,-614.64,0.00044069,30]
[404611349,1770326767754,-150.0,0.00044069,30]
[404611350,1770326767781,-180.38,0.00044069,30]
[404611351,1770326767809,-150.0,0.00044069,30]
[404611352,1770326767839,-180.38,0.00044069,30]
[404611353,1770326767867,-474.62,0.00044069,30]
[404611354,1770326767894,-742.18,0.00044069,30]
[404611355,1770326767921,-172.62,0.00044069,30]
[404611356,1770326767948,-614.64,0.00044069,30]
[404611357,1770326767977,-300.0,0.00044069,30]
[404611358,1770326768009,-172.62,0.00044069,30]
[404611359,1770326768047,-469.84,0.00044069,30]
[404611360,1770326768075,-180.23,0.00044069,30]
[404611361,1770326768105,-474.62,0.00044069,30]
[404611362,1770326768134,-614.64,0.00044069,30]
[404611363,1770326768162,-150.0,0.00044069,30]
[404611364,1770326768189,-150.0,0.00044069,30]
[404611365,1770326768217,-1116.2,0.00044069,30]
[404611366,1770326768245,-172.62,0.00044069,30]
[404611367,1770326768274,-180.35,0.00044069,30]
[404611368,1770326768301,-469.84,0.00044069,30]
[404611369,1770326768333,-150.0,0.00044069,30]
[404611370,1770326768364,-300.27,0.00044069,30]
[404611371,1770326768395,-474.62,0.00044069,30]
[404611372,1770326768422,-614.64,0.00044069,30]
[404611373,1770326768450,-1103.0,0.00044069,30]
[404611374,1770326768477,-1103.0,0.00044069,30]
[404611375,1770326768509,-1103.0,0.00044069,30]
[404611376,1770326768540,-180.38,0.00044069,30]
[404611377,1770326768715,-485.84,0.00044069,30]
[404611378,1770326768744,-939.35,0.00044069,30]
[404611379,1770326768775,-150.0,0.00044069,30]
[404611380,1770326768804,-172.62,0.00044069,30]
[404611381,1770326768834,-614.64,0.00044069,30]
[404611382,1770326768863,-303.68,0.00044069,30]
[404611383,1770326768891,-1103.0,0.00044069,30]
[404611384,1770326768919,-1103.0,0.00044069,30]
[404611385,1770326768945,-182.54,0.00044069,30]
[404611386,1770326768973,-300.26,0.00044069,30]
[404611387,1770326769005,-469.76,0.00044069,30]
[404611388,1770326769034,-542.8,0.00044069,30]
[404611389,1770326769064,-614.64,0.00044069,30]
[404611390,1770326769093,-180.38,0.00044069,30]
[404611391,1770326769123,-1102.56,0.00044069,30]
[404611392,1770326769152,-180.35,0.00044069,30]
[404611393,1770326769181,-947.13,0.00044069,30]
[404611394,1770326769210,-699.17,0.00044069,30]
[404611395,1770326769243,-150.0,0.00044069,30]
[404611396,1770326769272,-172.6,0.00044069,30]
[404611397,1770326769302,-1234.44,0.00044069,30]
[404611398,1770326769330,-465.69,0.00044069,30]
[404611399,1770326769358,-150.0,0.00044069,30]
[404611400,1770326769391,-1242.58,0.00044069,30]
[404611401,1770326769419,-150.0,0.00044069,30]
[404611402,1770326769448,-614.43,0.00044069,30]
[404611403,1770326769476,-172.62,0.00044069,30]
[404611404,1770326769508,-150.43,0.00044069,30]
[404611405,1770326769535,-469.76,0.00044069,30]
[404611406,1770326769864,614.64,0.00044069,30]
[404611407,1770326769895,1832.33484415,8e-05,2]
[404611408,1770326769917,7338.96834019,8e-05,2]
[404611409,1770326769988,569.1924479,0.00011,2]
[404611410,1770326770136,272.64614632,0.00044069,120]
[404611411,1770326770386,151.0,0.00044069,120]
[404611412,1770326811143,168.93991161,0.00013606,2]
[404611413,1770326823002,2965.4850883,0.00013606,2]
[404611414,1770326829628,-2150154.90728324,0.00044069,10]
[404611415,1770326829655,-3855.01158539,0.00044069,12]
[404611416,1770326829684,-769582.39256655,0.00044069,10]
[404611417,1770326829711,-317.0,0.00044069,10]
[404611418,1770326829739,-2076090.68856482,0.00044069,10]
[404611419,1770326833953,-5000000.0,0.00044069,10]
[404611420,1770326838005,1600.0,0.000136,4]
[404611421,1770326844301,-5000000.0,0.00044069,10]
[404611422,1770326849459,-5000000.0,0.00044069,10]
[404611423,1770326857473,-5000000.0,0.00044069,10]
[404611424,1770326858894,5265.58500009,0.00013606,2]
[404611425,1770326858917,1461.06779991,0.00013606,2]
[404611426,1770326869002,-8000000.0,0.00044069,10]
[404611427,1770326897363,392.13972227,7.888e-05,2]
[404611428,1770326903717,8146.80247782,0.00013605,2]
[404611429,1770326903745,10000.01,0.00013605,2]
[404611430,1770326903773,10000.01,0.00013605,2]
[404611431,1770326903799,10000.01,0.00013605,2]
[404611432,1770326903825,10000.01,0.00013605,2]
[404611433,1770326903852,10000.01,0.00013605,2]
[404611434,1770326903879,10000.01,0.00013605,2]
[404611435,1770326903910,10000.01,0.00013605,2]
[404611436,1770326903939,10000.01,0.00013605,2]
[404611437,1770326903966,10000.01,0.00013605,2]
[404611438,1770326913040,-1200.0,0.00013604,2]
[404611439,1770326916634,-9146.08581191,0.00013605,2]
[404611440,1770326916758,-10000.01,0.00013605,2]
[404611441,1770326916880,-10000.01,0.00013605,2]
[404611442,1770326916999,-10000.01,0.00013605,2]
[404611443,1770326917132,-10000.01,0.00013605,2]
[404611444,1770326919093,-10000.01,0.00013605,2]
[404611445,1770326919212,-10000.01,0.00013605,2]
[404611446,1770326919416,-10000.01,0.00013605,2]
[404611447,1770326919708,-10000.01,0.00013605,2]
[404611448,1770326919844,-10000.01,0.00013605,2]
[404611449,1770326928191,-815.27595642,0.00013604,2]
[404611450,1770326928227,-8369.45808716,0.00013605,2]
[404611451,1770326928436,-815.27595642,0.00013604,2]
[404611452,1770326928472,-8369.45808716,0.00013605,2]
[404611453,1770326934286,-168.93991161,0.000136,2]
[404611454,1770326934332,-815.27595642,0.00013604,2]
[404611455,1770326934366,-815.27595642,0.00013604,2]
[404611456,1770326934404,-815.27595642,0.00013604,2]
[404611457,1770326934441,-815.27595642,0.00013604,2]
[404611458,1770326934475,-815.27595642,0.00013604,2]
[404611459,1770326934510,-694.09465616,0.00013604,2]
[404611460,1770326934615,-121.18130026,0.00013604,2]